fUSD/lending_fUSD_20251229
["ID","MTS","AMOUNT","RATE_DAILY","PERIOD"]
[399983311,1766975463603,-151.0,0.00029682,3]
[399983312,1766975463613,-158.0,0.00029682,3]
[399983313,1766975463623,-151.0,0.00029682,3]
[399983314,1766975463633,-158.0,0.00029682,3]
[399983315,1766975463644,-151.0,0.00029682,3]
[399983316,1766975463654,-154.82910827,0.00029682,3]
[399983317,1766975463663,-151.0,0.00029682,3]
[399983318,1766975463673,-151.0,0.00029682,3]
[399983319,1766975463683,-151.0,0.00029682,3]
[399983320,1766975463695,-151.0,0.00029682,3]
[399983321,1766975463705,-151.0,0.00029682,3]
[399983322,1766975463715,-151.0,0.00029682,3]
[399983323,1766975463725,-151.0,0.00029682,3]
[399983324,1766975463735,-192.55497392,0.00029682,3]
[399983325,1766975463745,-151.0,0.00029723,7]
[399983326,1766975463755,-151.0,0.00029723,7]
[399983327,1766975463765,-313.327312,0.00029723,7]
[399983328,1766975463775,-313.327312,0.00029723,7]
[399983329,1766975463785,-313.327312,0.00029723,7]
[399983330,1766975463796,-313.327312,0.00029723,7]
[399983331,1766975463807,-1000.0,0.0002977,2]
[399983332,1766975463817,-605.80287197,0.0002977,2]
[399983333,1766975463827,-1032.81842917,0.00029776,2]
[399983334,1766975463838,-152.0,0.00029898,5]
[399983335,1766975463848,-78554.80824393,0.000299,2]
[399983336,1766975463858,-392.127433,0.00029904,2]
[399983337,1766975464164,-236.19966376,0.0002999,2]
[399983338,1766975464180,-598.14239624,0.0003,2]
[399983339,1766975464199,-163.75252809,0.0003,2]
[399983340,1766975464209,-115784.76840772,0.0003,5]
[399983341,1766975464218,-150000.0,0.0003,3]
[399983342,1766975464228,-151.0,0.0003,7]
[399983343,1766975464238,-151.0,0.0003,7]
[399983344,1766975464248,-151.0,0.0003,7]
[399983345,1766975464257,-237.702889,0.0003,7]
[399983346,1766975464267,-16388.19230637,0.0003,5]
[399983347,1766975464277,-4696.78182409,0.0003,2]
[399983348,1766975464293,-19785.71755071,0.0003,2]
[399983349,1766975464304,-1809.12569524,0.0003,2]
[399983350,1766975464313,-439.23026985,0.0003,2]
[399983351,1766975464322,-162.27550082,0.0003,2]
[399983352,1766975464331,-500.0,0.0003007,2]
[399983353,1766975464341,-1000.0,0.0003007,2]
[399983354,1766975464350,-500.0,0.0003007,2]
[399983355,1766975464360,-1000.0,0.0003007,2]
[399983356,1766975464369,-500.0,0.0003007,2]
[399983357,1766975464378,-1000.0,0.0003007,2]
[399983358,1766975464388,-1000.0,0.0003007,2]
[399983359,1766975464398,-500.0,0.0003007,2]
[399983360,1766975464408,-150.0,0.000301,2]
[399983361,1766975464417,-1500.0,0.000301,2]
[399983362,1766975464426,-1501.67,0.0003011,2]
[399983363,1766975464437,-280.03725112,0.00030129,2]
[399983364,1766975464447,-1068.65672845,0.0003013,2]
[399983365,1766975464459,-13788.82766404,0.0003013,2]
[399983366,1766975464471,-631.10302182,0.0003013,2]
[399983367,1766975464480,-5035.89655671,0.0003013,2]
[399983368,1766975464490,-200.76959751,0.0003013,2]
[399983369,1766975464500,-1218.78568733,0.0003013,2]
[399983370,1766975464510,-7696.345358,0.0003013,2]
[399983371,1766975464520,-151.0,0.00030136,2]
[399983372,1766975464530,-520.7,0.00030136,30]
[399983373,1766975464540,-378.9463958,0.00030136,60]
[399983374,1766975464550,-1000.0,0.00030136,2]
[399983375,1766975464560,-158.26386844,0.00030136,2]
[399983376,1766975464569,-154.47695501,0.00030136,2]
[399983377,1766975464578,-200.0,0.00030136,2]
[399983378,1766975464588,-429.70699078,0.00030136,2]
[399983379,1766975464597,-500.0,0.00030136,30]
[399983380,1766975464607,-500.0,0.00030136,30]
[399983381,1766975464616,-500.0,0.00030136,30]
[399983382,1766975464627,-500.0,0.00030136,30]
[399983383,1766975464636,-500.0,0.00030136,30]
[399983384,1766975464647,-500.0,0.00030136,30]
[399983385,1766975464657,-500.0,0.00030136,30]
[399983386,1766975464667,-228.63245013,0.00030136,30]
[399983387,1766975464676,-500.0,0.00030136,60]
[399983388,1766975464687,-500.0,0.00030136,60]
[399983389,1766975464696,-458.12367517,0.00030136,60]
[399983390,1766975464706,-200.0,0.00030136,2]
[399983391,1766975464715,-800.0,0.00030136,11]
[399983392,1766975464726,-800.0,0.00030136,11]
[399983393,1766975464735,-800.0,0.00030136,11]
[399983394,1766975464745,-800.0,0.00030136,11]
[399983395,1766975464755,-800.0,0.00030136,11]
[399983396,1766975464766,-800.0,0.00030136,11]
[399983397,1766975464776,-242.64097234,0.00030136,11]
[399983398,1766975464785,-500.0,0.00030136,2]
[399983399,1766975464794,-500.0,0.00030136,2]
[399983400,1766975464803,-381.09175381,0.00030136,2]
[399983401,1766975464812,-500.0,0.00030136,5]
[399983402,1766975464821,-500.0,0.00030136,5]
[399983403,1766975464830,-500.0,0.00030136,5]
[399983404,1766975464839,-500.0,0.00030136,5]
[399983405,1766975464848,-500.0,0.00030136,5]
[399983406,1766975464856,-500.0,0.00030136,5]
[399983407,1766975464865,-407.67929063,0.00030136,5]
[399983408,1766975464874,-800.0,0.00030136,11]
[399983409,1766975464884,-800.0,0.00030136,11]
[399983410,1766975464893,-800.0,0.00030136,11]
[399983411,1766975464902,-800.0,0.00030136,11]
[399983412,1766975464910,-800.0,0.00030136,11]
[399983413,1766975464919,-800.0,0.00030136,11]
[399983414,1766975464928,-800.0,0.00030136,11]
[399983415,1766975464937,-283.55496788,0.00030136,11]
[399983416,1766975464946,-514.72294339,0.00030136,2]
[399983417,1766975464955,-186.14168509,0.00030136,90]
[399983418,1766975464964,-200.0,0.00030136,2]
[399983419,1766975464973,-219.34847829,0.00030136,2]
[399983420,1766975464982,-359.18420706,0.00030136,2]
[399983421,1766975464991,-300.0,0.00030136,2]
[399983422,1766975465000,-300.0,0.00030136,2]
[399983423,1766975465010,-300.0,0.00030136,2]
[399983424,1766975465018,-300.0,0.00030136,2]
[399983425,1766975465028,-300.0,0.00030136,2]
[399983426,1766975465039,-300.0,0.00030136,2]
[399983427,1766975465048,-300.0,0.00030136,2]
[399983428,1766975465059,-300.0,0.00030136,2]
[399983429,1766975465068,-300.0,0.00030136,2]
[399983430,1766975465081,-300.0,0.00030136,2]
[399983431,1766975465093,-300.0,0.00030136,2]
[399983432,1766975465105,-300.0,0.00030136,2]
[399983433,1766975465114,-302.90311027,0.00030136,2]
[399983434,1766975465123,-500.0,0.00030136,3]
[399983435,1766975465132,-500.0,0.00030136,3]
[399983436,1766975465149,-500.0,0.00030136,3]
[399983437,1766975465163,-500.0,0.00030136,3]
[399983438,1766975465173,-500.0,0.00030136,3]
[399983439,1766975465183,-544.62574966,0.00030136,3]
[399983440,1766975465193,-156.21283283,0.00030136,14]
[399983441,1766975465203,-224.52044117,0.00030136,60]
[399983442,1766975465213,-1000.0,0.00030136,30]
[399983443,1766975465222,-307.19565298,0.00030136,5]
[399983444,1766975465234,-278.56130037,0.00030136,2]
[399983445,1766975465243,-500.0,0.00030136,2]
[399983446,1766975465253,-500.0,0.00030136,2]
[399983447,1766975465262,-500.0,0.00030136,2]
[399983448,1766975465273,-500.0,0.00030136,2]
[399983449,1766975465285,-500.0,0.00030136,2]
[399983450,1766975465294,-500.0,0.00030136,2]
[399983451,1766975465303,-500.0,0.00030136,2]
[399983452,1766975465312,-500.0,0.00030136,2]
[399983453,1766975465322,-500.0,0.00030136,2]
[399983454,1766975465331,-500.0,0.00030136,2]
[399983455,1766975465340,-500.0,0.00030136,2]
[399983456,1766975465352,-360.70566933,0.00030137,7]
[399983457,1766975465361,-999.09,0.00030137,2]
[399983458,1766975465370,-236.47034008,0.00030137,120]
[399983459,1766975465379,-1770.78,0.00030137,7]
[399983460,1766975465388,-435.6,0.00030137,5]
[399983461,1766975465398,-1536.0,0.00030137,120]
[399983462,1766975465408,-200.0,0.00030137,2]
[399983463,1766975465417,-1500.0,0.000302,2]
[399983464,1766975465426,-172.87,0.000302,30]
[399983465,1766975465435,-200.0,0.00030437,2]
[399983466,1766975465445,-200.0,0.00030437,2]
[399983467,1766975465456,-200.0,0.00030437,2]
[399983468,1766975465470,-200.0,0.00030438,2]
[399983469,1766975465482,-173.0,0.00030447,14]
[399983470,1766975465496,-1099.0,0.00030541,5]
[399983471,1766975465507,-202.57,0.0003057,30]
[399983472,1766975465516,-200.0,0.00030742,2]
[399983473,1766975465525,-200.0,0.00030742,2]
[399983474,1766975465534,-200.0,0.00030742,2]
[399983475,1766975465546,-200.0,0.00030743,2]
[399983476,1766975465555,-498.91187858,0.00030836,2]
[399983477,1766975465564,-2599.58348198,0.0003084,2]
[399983478,1766975465573,-135487.86,0.000309,7]
[399983479,1766975465582,-151.0,0.000309,31]
[399983480,1766975465591,-151.0,0.000309,31]
[399983481,1766975465600,-151.0,0.000309,31]
[399983482,1766975465609,-151.0,0.000309,31]
[399983483,1766975465619,-867.959773,0.000309,7]
[399983484,1766975465628,-867.959773,0.000309,7]
[399983485,1766975465637,-867.959773,0.000309,7]
[399983486,1766975465646,-867.95977905,0.000309,7]
[399983487,1766975465656,-462.95159,0.000309,31]
[399983488,1766975465665,-1082.899379,0.000309,2]
[399983489,1766975465674,-462.95159,0.000309,31]
[399983490,1766975465683,-1082.899379,0.000309,2]
[399983491,1766975465693,-462.95159,0.000309,31]
[399983492,1766975465702,-1082.899379,0.000309,2]
[399983493,1766975465711,-462.951588,0.000309,31]
[399983494,1766975465720,-1082.899377,0.000309,2]
[399983495,1766975465729,-207.94281,0.000309,31]
[399983496,1766975465738,-207.94281,0.000309,31]
[399983497,1766975465747,-151.0,0.000309,31]
[399983498,1766975465756,-207.94281,0.000309,31]
[399983499,1766975465766,-151.0,0.000309,31]
[399983500,1766975465775,-207.942817,0.000309,31]
[399983501,1766975465785,-151.0,0.000309,31]
[399983502,1766975465796,-9943.82300051,0.00031,2]
[399983503,1766975465807,-1500.0,0.00031,2]
[399983504,1766975465816,-11252.21,0.00031,7]
[399983505,1766975465826,-250.0,0.00031,30]
[399983506,1766975465836,-172.87,0.00031,30]
[399983507,1766975465845,-600.0,0.00031,2]
[399983508,1766975465854,-1264.0,0.00031019,2]
[399983509,1766975465863,-432.0,0.00031019,2]
[399983510,1766975465873,-1199.0,0.00031019,2]
[399983511,1766975465883,-912.0,0.00031019,2]
[399983512,1766975465892,-613.0,0.00031019,2]
[399983513,1766975465903,-2432.0,0.00031019,2]
[399983514,1766975465912,-4810.0,0.00031019,2]
[399983515,1766975465921,-200.0,0.00031049,2]
[399983516,1766975465931,-200.0,0.00031049,2]
[399983517,1766975465940,-200.0,0.00031049,2]
[399983518,1766975465949,-200.0,0.0003105,2]
[399983519,1766975465958,-196.7,0.000311,4]
[399983520,1766975465967,-200.0,0.0003136,2]
[399983521,1766975465975,-200.0,0.0003136,2]
[399983522,1766975465984,-200.0,0.0003136,2]
[399983523,1766975465993,-200.0,0.00031361,2]
[399983524,1766975466002,-201.6439628,0.0003137,7]
[399983525,1766975466012,-19602.43287558,0.0003143,4]
[399983526,1766975466020,-290.39862941,0.00031498,2]
[399983527,1766975466029,-196.42404127,0.000315,2]
[399983528,1766975466038,-150.0,0.000315,2]
[399983529,1766975466047,-2531.26,0.00031879,2]
[399983530,1766975466056,-172.87,0.000319,30]
[399983531,1766975466065,-151.0,0.00032,5]
[399983532,1766975466074,-1500.0,0.00032,2]
[399983533,1766975466083,-983.16550695,0.00032,120]
[399983534,1766975466093,-2626.0,0.00032,2]
[399983535,1766975466102,-2312.64415811,0.00032,120]
[399983536,1766975466112,-1099.0,0.00032068,5]
[399983537,1766975466121,-2000.0,0.000321,2]
[399983538,1766975466130,-883.0,0.000321,2]
[399983539,1766975466139,-993.0,0.000321,2]
[399983540,1766975466148,-305.0,0.000321,2]
[399983541,1766975466157,-152.85517104,0.0003216,2]
[399983542,1766975466166,-500.0,0.0003217,2]
[399983543,1766975466174,-1000.0,0.0003217,2]
[399983544,1766975466184,-517.37161808,0.00032205,2]
[399983545,1766975466195,-152.0,0.00032266,6]
[399983546,1766975466204,-159.43740654,0.00032266,5]
[399983547,1766975466213,-889.78523491,0.000323,2]
[399983548,1766975466222,-151.0,0.000325,7]
[399983549,1766975466231,-12187.93,0.00032824,5]
[399983550,1766975466240,-301.1433787,0.00032867,2]
[399983551,1766975466250,-513.37258864,0.00032876,120]
[399983552,1766975466260,-429.54233311,0.00032876,2]
[399983553,1766975466270,-515.32927071,0.00032876,2]
[399983554,1766975466279,-355.50022224,0.00032876,2]
[399983555,1766975466289,-376.03060252,0.00032876,2]
[399983556,1766975466299,-463.09049417,0.00032876,2]
[399983557,1766975466308,-500.0,0.00032876,2]
[399983558,1766975466318,-468.77777078,0.00032876,2]
[399983559,1766975466327,-500.0,0.00032876,2]
[399983560,1766975466337,-590.45970737,0.00032876,2]
[399983561,1766975466347,-500.0,0.00032876,2]
[399983562,1766975466356,-500.0,0.00032876,2]
[399983563,1766975466365,-638.91867357,0.00032876,2]
[399983564,1766975466374,-405.74791753,0.00032876,2]
[399983565,1766975466384,-500.0,0.00032876,2]
[399983566,1766975466394,-640.04417215,0.00032876,2]
[399983567,1766975466403,-500.0,0.00032876,2]
[399983568,1766975466413,-500.0,0.00032876,2]
[399983569,1766975466424,-500.0,0.00032876,2]
[399983570,1766975466437,-500.0,0.00032876,2]
[399983571,1766975466454,-151.0,0.00032877,2]
[399983572,1766975466468,-250.0,0.00032877,10]
[399983573,1766975466478,-999.09,0.00032877,2]
[399983574,1766975466487,-150.0,0.00032877,2]
[399983575,1766975466498,-500.0,0.00032877,7]
[399983576,1766975466507,-500.0,0.00032877,7]
[399983577,1766975466517,-240.40620935,0.00032877,7]
[399983578,1766975466527,-166.75,0.000329,14]
[399983579,1766975466538,-194.16,0.000329,14]
[399983580,1766975466547,-13357.73,0.000329,2]
[399983581,1766975466557,-150.0,0.00032904,2]
[399983582,1766975466567,-227.83688997,0.00032932,2]
[399983583,1766975466576,-250.0,0.00033,7]
[399983584,1766975466585,-135487.86,0.00033,14]
[399983585,1766975466595,-5576.92350395,0.00033,2]
[399983586,1766975466604,-172.87,0.00033,30]
[399983587,1766975466613,-553.579231,0.00033,14]
[399983588,1766975466622,-650.0,0.00033,2]
[399983589,1766975466631,-151.0,0.00033,31]
[399983590,1766975466641,-151.0,0.00033,31]
[399983591,1766975466651,-151.0,0.00033,31]
[399983592,1766975466662,-177.69723568,0.00033,30]
[399983593,1766975466672,-151.0,0.00033,31]
[399983594,1766975466681,-301.260252,0.00033,31]
[399983595,1766975466691,-489.382558,0.00033,31]
[399983596,1766975466700,-489.382558,0.00033,31]
[399983597,1766975466709,-489.382558,0.00033,31]
[399983598,1766975466718,-489.382558,0.00033,31]
[399983599,1766975466727,-993.67,0.00033165,2]
[399983600,1766975466736,-1205.46496448,0.000335,2]
[399983601,1766975466746,-536.51436795,0.00033574,2]
[399983602,1766975466755,-13357.73,0.000336,2]
[399983603,1766975466764,-169.0,0.00033757,13]
[399983604,1766975466773,-11252.21,0.000339,14]
[399983605,1766975466782,-13357.73,0.000339,2]
[399983606,1766975466791,-50000.0,0.00034,24]
[399983607,1766975466800,-50000.0,0.00034,14]
[399983608,1766975466810,-4769.11584416,0.00034,2]
[399983609,1766975466819,-1179.24597429,0.00034,2]
[399983610,1766975466829,-231.51641337,0.00034,7]
[399983611,1766975466837,-325.51614735,0.00034,2]
[399983612,1766975466846,-1313.0,0.00034,2]
[399983613,1766975466856,-300.0,0.00034,2]
[399983614,1766975466865,-1264.0,0.00034019,2]
[399983615,1766975466875,-432.0,0.00034019,2]
[399983616,1766975466886,-1199.0,0.00034019,2]
[399983617,1766975466897,-912.0,0.00034019,2]
[399983618,1766975466908,-613.0,0.00034019,2]
[399983619,1766975466918,-2432.0,0.00034019,2]
[399983620,1766975466928,-674.969,0.00034019,2]
[399983621,1766975466937,-194.16,0.000342,14]
[399983622,1766975466946,-13357.73,0.000342,2]
[399983623,1766975466955,-151.0,0.00034246,2]
[399983624,1766975466964,-501.54061454,0.00034247,2]
[399983625,1766975466974,-1723.12972602,0.0003449,2]
[399983626,1766975466985,-156.2201132,0.00034763,7]
[399983627,1766975466994,-300.41140243,0.00034763,7]
[399983628,1766975467004,-1210.79827671,0.00034763,7]
[399983629,1766975467014,-2397.65843759,0.000348,7]
[399983630,1766975467023,-172.87,0.000348,30]
[399983631,1766975467032,-202.57,0.00034895,30]
[399983632,1766975467040,-265.95433308,0.00034898,5]
[399983633,1766975467050,-660.04,0.00034924,2]
[399983634,1766975467059,-660.04,0.00034924,2]
[399983635,1766975467068,-1310.39,0.00034924,2]
[399983636,1766975467079,-660.04,0.00034924,2]
[399983637,1766975467088,-669.61,0.00034924,2]
[399983638,1766975467098,-659.96,0.00034924,2]
[399983639,1766975467108,-659.96,0.00034924,2]
[399983640,1766975467119,-556.36539957,0.00034943,2]
[399983641,1766975467129,-11769.07374167,0.00034999,2]
[399983642,1766975467292,-50000.0,0.00035,25]
[399983643,1766975467302,-50000.0,0.00035,15]
[399983644,1766975467312,-618.30048,0.00035,4]
[399983645,1766975467321,-250.0,0.00035,7]
[399983646,1766975467331,-1554.18224015,0.00035,2]
[399983647,1766975467340,-155.139,0.00035,12]
[399983648,1766975467349,-13357.73,0.00035,2]
[399983649,1766975467358,-150.0,0.00035,2]
[399983650,1766975467367,-700.0,0.00035,2]
[399983651,1766975467377,-1908.440717,0.00035,2]
[399983652,1766975467386,-398.71363662,0.00035,30]
[399983653,1766975467395,-801.8587484,0.00035,3]
[399983654,1766975467405,-82453.61360428,0.00035,2]
[399983655,1766975467413,-121158.96841603,0.00035,2]
[399983656,1766975467423,-48363.999998,0.00035,7]
[399983657,1766975467433,-194.16,0.000352,14]
[399983658,1766975467442,-135487.86,0.000352,14]
[399983659,1766975467452,-151.0,0.000352,31]
[399983660,1766975467464,-290.08099,0.000352,31]
[399983661,1766975467476,-313.327312,0.000352,31]
[399983662,1766975467486,-313.327312,0.000352,31]
[399983663,1766975467495,-313.327312,0.000352,31]
[399983664,1766975467505,-313.327319,0.000352,31]
[399983665,1766975467514,-387.9136,0.0003522,30]
[399983666,1766975467524,-2000.0,0.00035234,15]
[399983667,1766975467535,-13357.73,0.000353,2]
[399983668,1766975467545,-11252.21,0.000354,14]
[399983669,1766975467555,-172.87,0.000354,30]
[399983670,1766975467564,-56987.16942414,0.0003561,2]
[399983671,1766975467574,-151.0,0.00035615,2]
[399983672,1766975467583,-1000.0,0.00035616,2]
[399983673,1766975467594,-189.7932299,0.00035616,120]
[399983674,1766975467603,-1190.73,0.00035616,120]
[399983675,1766975467611,-999.09,0.00035616,2]
[399983676,1766975467621,-2000.0,0.000358,2]
[399983677,1766975467630,-1319.24,0.00035883,2]
[399983678,1766975467638,-660.04,0.00035883,2]
[399983679,1766975467648,-660.04,0.00035883,2]
[399983680,1766975467657,-660.04,0.00035883,2]
[399983681,1766975467666,-660.04,0.00035883,2]
[399983682,1766975467675,-660.04,0.00035883,2]
[399983683,1766975467684,-660.04,0.00035883,2]
[399983684,1766975467693,-660.04,0.00035883,2]
[399983685,1766975467702,-660.04,0.00035883,2]
[399983686,1766975467711,-660.04,0.00035883,2]
[399983687,1766975467720,-660.04,0.00035883,2]
[399983688,1766975467729,-660.04,0.00035883,2]
[399983689,1766975467738,-660.04,0.00035883,2]
[399983690,1766975467747,-660.04,0.00035883,2]
[399983691,1766975467756,-660.04,0.00035883,2]
[399983692,1766975467764,-660.04,0.00035883,2]
[399983693,1766975467773,-660.04,0.00035883,2]
[399983694,1766975467782,-660.04,0.00035883,2]
[399983695,1766975467791,-660.04,0.00035883,2]
[399983696,1766975467801,-660.04,0.00035883,2]
[399983697,1766975467810,-660.04,0.00035883,2]
[399983698,1766975467819,-660.04,0.00035883,2]
[399983699,1766975467828,-660.04,0.00035883,2]
[399983700,1766975467838,-660.04,0.00035883,2]
[399983701,1766975467847,-660.04,0.00035883,2]
[399983702,1766975467856,-660.04,0.00035883,2]
[399983703,1766975467865,-660.04,0.00035883,2]
[399983704,1766975467874,-660.04,0.00035883,2]
[399983705,1766975467882,-660.04,0.00035883,2]
[399983706,1766975467892,-660.04,0.00035883,2]
[399983707,1766975467901,-660.04,0.00035883,2]
[399983708,1766975467910,-660.04,0.00035883,2]
[399983709,1766975467918,-660.04,0.00035883,2]
[399983710,1766975467927,-659.71,0.00035883,2]
[399983711,1766975467937,-151.0,0.00035883,31]
[399983712,1766975467946,-151.0,0.00035883,31]
[399983713,1766975467955,-151.0,0.00035883,31]
[399983714,1766975467965,-296.87617,0.00035888,30]
[399983715,1766975467974,-1000.0,0.0003589,2]
[399983716,1766975467983,-50000.0,0.00036,26]
[399983717,1766975467995,-4009.0,0.00036,6]
[399983718,1766975468005,-1113.25,0.00036,30]
[399983719,1766975468014,-79972.89487564,0.00036,2]
[399983720,1766975468024,-5047.15867946,0.00036,2]
[399983721,1766975468033,-1006.0,0.00036,15]
[399983722,1766975468042,-567.0,0.00036,120]
[399983723,1766975468051,-13357.73,0.00036,2]
[399983724,1766975468061,-271.02634234,0.00036,2]
[399983725,1766975468070,-10801.73130389,0.00036,2]
[399983726,1766975468079,-1033.98827313,0.00036,7]
[399983727,1766975468089,-930.56,0.00036002,2]
[399983728,1766975468098,-5000.0,0.00036009,2]
[399983729,1766975468107,-5000.0,0.00036046,2]
[399983730,1766975468116,-5000.0,0.00036071,2]
[399983731,1766975468127,-296.87617,0.00036088,30]
[399983732,1766975468136,-25000.0,0.00036097,2]
[399983733,1766975468146,-3590.79,0.00036104,2]
[399983734,1766975468155,-5800.0,0.00036105,2]
[399983735,1766975468164,-662.1,0.00036111,2]
[399983736,1766975468173,-5000.0,0.00036113,2]
[399983737,1766975468182,-5800.0,0.00036113,2]
[399983738,1766975468192,-5000.0,0.00036115,2]
[399983739,1766975468201,-5800.0,0.00036121,2]
[399983740,1766975468211,-5000.0,0.00036129,2]
[399983741,1766975468220,-5800.0,0.0003613,2]
[399983742,1766975468229,-5800.0,0.00036139,2]
[399983743,1766975468239,-5800.0,0.00036139,2]
[399983744,1766975468249,-5800.0,0.00036147,2]
[399983745,1766975468259,-5800.0,0.00036147,2]
[399983746,1766975468268,-5800.0,0.00036156,2]
[399983747,1766975468278,-5800.0,0.00036156,2]
[399983748,1766975468287,-5000.0,0.00036158,2]
[399983749,1766975468297,-1000.0,0.00036164,2]
[399983750,1766975468307,-5800.0,0.00036164,2]
[399983751,1766975468317,-5800.0,0.00036164,2]
[399983752,1766975468327,-331.99703471,0.00036164,2]
[399983753,1766975468337,-25000.0,0.00036166,2]
[399983754,1766975468347,-4779.21,0.0003618,2]
[399983755,1766975468356,-5000.0,0.0003618,2]
[399983756,1766975468365,-5000.0,0.00036183,2]
[399983757,1766975468375,-1736.52,0.000362,2]
[399983758,1766975468385,-347.3,0.000362,2]
[399983759,1766975468394,-172.87,0.000362,30]
[399983760,1766975468403,-1504.94,0.00036204,2]
[399983761,1766975468412,-693.48,0.00036207,2]
[399983762,1766975468421,-25000.0,0.00036221,2]
[399983763,1766975468430,-5000.0,0.00036226,2]
[399983764,1766975468440,-2556.17,0.00036229,2]
[399983765,1766975468450,-5000.0,0.00036235,2]
[399983766,1766975468462,-481.58,0.00036236,2]
[399983767,1766975468472,-14168.54,0.0003625,2]
[399983768,1766975468481,-5000.0,0.00036255,2]
[399983769,1766975468490,-5000.0,0.00036277,2]
[399983770,1766975468500,-296.87617,0.00036288,30]
[399983771,1766975468511,-576.95091935,0.00036312,2]
[399983772,1766975468520,-5000.0,0.00036317,2]
[399983773,1766975468529,-654.93,0.00036427,2]
[399983774,1766975468542,-25000.0,0.00036437,2]
[399983775,1766975468552,-1000.0,0.00036438,2]
[399983776,1766975468562,-5000.0,0.00036454,2]
[399983777,1766975468572,-5000.0,0.00036469,2]
[399983778,1766975468581,-296.87617,0.00036488,30]
[399983779,1766975468590,-5000.0,0.0003649,2]
[399983780,1766975468600,-194.16,0.000365,14]
[399983781,1766975468609,-5000.0,0.00036517,2]
[399983782,1766975468618,-25000.0,0.00036562,2]
[399983783,1766975468627,-1673.13,0.00036565,2]
[399983784,1766975468636,-150.0,0.00036575,2]
[399983785,1766975468645,-500.0,0.00036589,30]
[399983786,1766975468654,-5000.0,0.00036594,2]
[399983787,1766975468663,-135487.86,0.000366,14]
[399983788,1766975468672,-205790.0880706,0.000366,30]
[399983789,1766975468681,-5000.0,0.00036609,2]
[399983790,1766975468691,-5000.0,0.00036611,2]
[399983791,1766975468700,-5000.0,0.00036648,2]
[399983792,1766975468709,-2556.17,0.00036663,2]
[399983793,1766975468719,-5000.0,0.00036675,2]
[399983794,1766975468728,-296.87617,0.00036688,30]
[399983795,1766975468739,-25000.0,0.00036691,2]
[399983796,1766975468748,-1500.0,0.00036692,14]
[399983797,1766975468757,-500.0,0.00036692,14]
[399983798,1766975468766,-1190.73,0.00036712,120]
[399983799,1766975468775,-1113.25,0.0003672,30]
[399983800,1766975468785,-5000.0,0.00036742,2]
[399983801,1766975468795,-5000.0,0.00036752,2]
[399983802,1766975468805,-5000.0,0.00036786,2]
[399983803,1766975468814,-11252.21,0.000368,14]
[399983804,1766975468823,-172.87,0.000368,30]
[399983805,1766975468833,-1602.2438228,0.000368,2]
[399983806,1766975468843,-1944.72902758,0.000368,2]
[399983807,1766975468853,-25000.0,0.00036817,2]
[399983808,1766975468862,-554.77,0.00036824,2]
[399983809,1766975468871,-569.45,0.00036824,2]
[399983810,1766975468881,-2500.0,0.00036841,2]